Cogmind - Beta 9.2 @@@ ROGUE MODE // 2019.11.22 @ 08:28:16 Player: russur Result: Self-destructed Performance ------------- Evolutions (2) 1000 Regions Visited (5) 1000 Robots Destroyed (19) 95 Value Destroyed (415) 415 Prototype IDs (0) 0 Alien Tech Used (0) 0 Bonus (14) 14 TOTAL SCORE: 2524 Bonus ------- Follower Combat Kills 14 Cogmind --------- Core Integrity 394/550 Matter 238/300 Energy 29/100 System Corruption 0% Temperature Cool (482) Movement Treading (205) Ox2 Location -8/Materials Parts ------- > --- POWER (2) -------- (None) > --- PROPULSION (3) --- Light Treads Light Treads Armored Treads > --- UTILITY (3) ------ Humpback Improved Signal Interpreter > --- WEAPON (3) ------- Beam Cannon Assault Cannon > --- INVENTORY (24) --- Ion Engine Light Ion Engine Nuclear Core Reinforced Deuterium Engine Fission Core Aluminum Leg Aluminum Leg Carbon-fiber Leg Small Storage Unit Medium Storage Unit High-capacity Storage Unit High-capacity Battery (400) Sensor Array ECM Suite Light Armor Plating Signal Generator Peak State ------------ > --- POWER ------------ Light Ion Engine Light Deuterium Engine > --- PROPULSION ------- Light Treads Light Treads Armored Treads > --- UTILITY ---------- Humpback Improved Signal Interpreter > --- WEAPON ----------- Heavy EM Pulse Gun Assault Rifle Assault Rifle > --- INVENTORY -------- Ion Engine Light Ion Engine Nuclear Core Reinforced Deuterium Engine Fission Core Aluminum Leg Aluminum Leg Carbon-fiber Leg Small Storage Unit High-capacity Storage Unit High-capacity Battery Sensor Array ECM Suite Light Armor Plating Signal Generator [Rating: 20] Favorites ----------- Power Ion Engine Engine Ion Engine Propulsion Aluminum Leg Treads Light Treads Leg Aluminum Leg Utility Humpback Storage Humpback Processor Improved Signal Interpreter Weapon Assault Rifle Energy Gun Small Laser Energy Cannon Beam Cannon Ballistic Gun Assault Rifle Ballistic Cannon Assault Cannon Build | -11 -10 -10 -10 -9 -8 ------- Run | Scr Mat Min Exi Min Mat Slots Evolved 4 | . . . . . 4 Power 1 | . . . . . 1 Propulsion 1 | . . . . . 1 Utility 1 | . . . . . 1 Weapon 1 | . . . . . 1 Parts Attached 28 | 6 7 1 2 . 12 Power 6 | 1 2 1 . . 2 Engine 6 | 1 2 1 . . 2 Core . | . . . . . . Reactor . | . . . . . . Propulsion 5 | 2 . . . . 3 Treads 3 | . . . . . 3 Leg 2 | 2 . . . . . Wheel . | . . . . . . Hover . | . . . . . . Flight . | . . . . . . Utility 9 | 1 4 . 2 . 2 Device . | . . . . . . Storage 6 | 1 3 . 2 . . Processor 3 | . 1 . . . 2 Hackware . | . . . . . . Protection . | . . . . . . Artifact . | . . . . . . Weapon 8 | 2 1 . . . 5 Energy Gun 2 | 1 . . . . 1 Energy Cannon 3 | . . . . . 3 Ballistic Gun 2 | 1 1 . . . . Ballistic Cannon 1 | . . . . . 1 Launcher . | . . . . . . Special Weapon . | . . . . . . Impact Weapon . | . . . . . . Slashing Weapon . | . . . . . . Piercing Weapon . | . . . . . . Special Melee Weapon . | . . . . . . Unidentified Prototypes . | . . . . . . Parts Lost 7 | . . . . . 7 Power 2 | . . . . . 2 Propulsion . | . . . . . . Utility . | . . . . . . Weapon 5 | . . . . . 5 Highest Loss Streak 7 | . . . . . 7 Average Slot Usage (%) 88 | . 98 100 86 85 83 Engine 13 | . 12 14 14 14 15 Treads 1 | . . . . . 23 Leg 25 | . 28 28 28 28 2 Storage 16 | . 26 28 15 14 9 Energy Gun 1 | . 10 . . . 6 Ballistic Gun 25 | . 17 28 28 28 14 Naked Turns . | . . . . . . Heaviest Build 95 | 10 57 57 89 89 95 Greatest Support 60 | 20 20 20 20 20 60 Greatest Overweight (x) 4 | . 2 2 4 4 4 Average Overweight (x) 3 | . 1 2 3 4 1 Largest Inventory Capacity 24 | 6 18 18 24 24 24 Average Capacity 22 | 4 16 18 23 24 24 Most Carried 16 | 4 11 12 16 16 16 Average Carried 13 | 2 9 10 14 15 13 Final Capacity 24 | 6 18 18 24 24 24 Final Carried 16 | 4 9 12 15 16 16 Class Distribution -------------------- 67% | Hauler-Mutant 26% | Mutant 6% | Hauler-Gunner Dominant Class ---------------- Mutant | -10/Materials Mutant | -10/Mines Hauler-Mutant | -10/Exiles Hauler-Mutant | -9/Mines Hauler-Gunner | -8/Materials Resources | -11 -10 -10 -10 -9 -8 ----------- Run | Scr Mat Min Exi Min Mat Matter Collected 563 | 252 171 10 20 . 110 Remotely . | . . . . . . Salvage Created 579 | . 253 . . . 326 Parts 42 | . 21 . . . 21 Haulers Intercepted . | . . . . . . Recyclers Shooed . | . . . . . . Parts Field Recycled . | . . . . . . Retrieved Matter . | . . . . . . Parts Self-Destructed . | . . . . . . Prevented . | . . . . . . Kills | -11 -10 -10 -10 -9 -8 ------- Run | Scr Mat Min Exi Min Mat Combat Hostiles Destroyed 14 | . 6 . . . 8 Guns 9 | . 6 . . . 3 Cannons 3 | . . . . . 3 AOE 2 | . . . . . 2 Classes Destroyed 6 | . 5 . . . 1 Builder 1 | . 1 . . . . Recycler 1 | . 1 . . . . Watcher 3 | . 2 . . . 1 Swarmer 8 | . 5 . . . 3 Grunt 5 | . 1 . . . 4 Sentry 1 | . . . . . 1 Best Kill Streak 4 | . 3 . . . 4 Combat Bots Only 4 | . 3 . . . 4 Max Kills in Single Turn 2 | . 2 . . . 2 Gunslinging 1 | . 1 . . . . Exploded 1 | . . . . . 1 Melee . | . . . . . . Uniques/NPCs Destroyed . | . . . . . . Combat | -11 -10 -10 -10 -9 -8 -------- Run | Scr Mat Min Exi Min Mat Damage Taken 1306 | . 305 . . . 1001 Core 189 | . 33 . . . 156 Absorbed by Shields . | . . . . . . Core Remaining (%) 93 | 100 . . . 86 . Volleys Fired 46 | . 24 . . . 22 Largest 3 | . 2 . . . 3 Hottest 180 | . 60 . . . 180 Shots Fired 105 | . 48 . . . 57 Gun 82 | . 48 . . . 34 Cannon 23 | . . . . . 23 Launcher . | . . . . . . Special . | . . . . . . Kinetic 58 | . 31 . . . 27 Thermal 37 | . 17 . . . 20 Explosive . | . . . . . . Electromagnetic 10 | . . . . . 10 Robot Hit Streak 13 | . 5 . . . 13 Robot Miss Streak 7 | . 4 . . . 7 Penetration Max . | . . . . . . Secondary Targets 2 | . 2 . . . . Max Gunslinging Chain 1 | . 1 . . . . Shots Hit Robots 55 | . 23 . . . 32 Core Hits 28 | . 13 . . . 15 Critical Hits . | . . . . . . Critical Kills . | . . . . . . Critical Parts Destroyed . | . . . . . . Melee Attacks . | . . . . . . Impact . | . . . . . . Slashing . | . . . . . . Piercing . | . . . . . . Sneak Attacks . | . . . . . . Combat Hostiles . | . . . . . . Follow-up Attacks . | . . . . . . Damage Inflicted 949 | . 273 . . . 676 Guns 556 | . 273 . . . 283 Cannons 231 | . . . . . 231 Explosions 162 | . . . . . 162 Melee . | . . . . . . Ramming . | . . . . . . Kinetic 398 | . 162 . . . 236 Thermal 449 | . 111 . . . 338 Explosive . | . . . . . . Electromagnetic 102 | . . . . . 102 Impact . | . . . . . . Slashing . | . . . . . . Piercing . | . . . . . . Highest Corruption . | . . . . . . Average Corruption . | . . . . . . Corruption Purged . | . . . . . . Overload Shots . | . . . . . . Overflow Damage 9 | . . . . . 9 Projectiles 9 | . . . . . 9 Explosions . | . . . . . . Melee . | . . . . . . Knockbacks . | . . . . . . Impact . | . . . . . . Kinetic . | . . . . . . Secondary . | . . . . . . Self-Inflicted Damage 40 | . . . . . 40 Shots 2 | . . . . . 2 Rammed . | . . . . . . Targets Rammed . | . . . . . . Kicked . | . . . . . . Crushed . | . . . . . . Highest Temperature 517 | . 36 . . . 517 Average Temperature 177 | . 25 . . . 208 Received Heat Transfer 504 | . 36 . . . 468 Effects 5 | . . . . . 5 Short Circuit 1 | . . . . . 1 Damage (minor) 3 | . . . . . 3 Damage (major) 1 | . . . . . 1 Siege Activations . | . . . . . . Robots Corrupted . | . . . . . . Combat Hostiles . | . . . . . . Parts Fried . | . . . . . . Impact Corruptions . | . . . . . . Robots Melted . | . . . . . . Combat Hostiles . | . . . . . . Parts Melted . | . . . . . . Heat Transferred 870 | . 250 . . . 620 Parts Sabotaged . | . . . . . . Parts Stolen . | . . . . . . Parts Stripped . | . . . . . . Power Chain Reactions 2 | . . . . . 2 Missiles Intercepted . | . . . . . . Alert | -11 -10 -10 -10 -9 -8 ------- Run | Scr Mat Min Exi Min Mat Peak Influence 206 | . 179 . . . 206 Average Influence 50 | . 60 . . . 92 Maximum Alert Level 1 | . . . . . 1 Low Security (%) 99 | 100 100 100 . 100 97 Level 1 . | . . . . . 2 Level 2 . | . . . . . . Level 3 . | . . . . . . Level 4 . | . . . . . . Level 5 . | . . . . . . High Security . | . . . . . . Max Security . | . . . . . . Squads Dispatched 3 | . . . . 1 2 Investigation 1 | . . . . . 1 Extermination . | . . . . . . Reinforcement 1 | . . . . . 1 Assault 1 | . . . . 1 . Garrison . | . . . . . . Intercept . | . . . . . . Construction Impeded . | . . . . . . Haulers Reinforced . | . . . . . . Stealth | -11 -10 -10 -10 -9 -8 --------- Run | Scr Mat Min Exi Min Mat Distress Signals 2 | . 1 . . . 1 Communications Jammed . | . . . . . . Distress Signals . | . . . . . . Times Spotted 31 | . 13 . . . 18 Peak Tracking Total 5 | . 3 . . . 5 Tactical Retreats 1 | . . . . . 1 Traps | -11 -10 -10 -10 -9 -8 ------- Run | Scr Mat Min Exi Min Mat Traps Triggered 1 | . . . . . 1 Indirectly . | . . . . . . Trap Hack Attempts . | . . . . . . Triggered . | . . . . . . Disarmed . | . . . . . . Reprogrammed . | . . . . . . Reused . | . . . . . . Traps Extracted . | . . . . . . Installed . | . . . . . . Triggered . | . . . . . . Machines | -11 -10 -10 -10 -9 -8 ---------- Run | Scr Mat Min Exi Min Mat Machines Disabled . | . . . . . . Max in Single Turn . | . . . . . . Machines Sabotaged . | . . . . . . Garrisons Compromised . | . . . . . . Overloaded Fab Kills . | . . . . . . Fab Network Shutdowns . | . . . . . . Hacking | -11 -10 -10 -10 -9 -8 --------- Run | Scr Mat Min Exi Min Mat Machines Accessed 6 | . 2 . 3 . 1 Terminals 1 | . 1 . . . . Fabricators . | . . . . . . Repair Stations 1 | . 1 . . . . Recycling Units . | . . . . . . Scanalyzers 1 | . . . . . 1 Garrison Access . | . . . . . . Total Hacks 34 | . 5 . 25 . 4 Successful 33 | . 4 . 25 . 4 Failed 1 | . 1 . . . . Catastrophic . | . . . . . . Database Lockouts . | . . . . . . Manual . | . . . . . . Terminals 3 | . 3 . . . . Fabricators . | . . . . . . Repair Stations 2 | . 2 . . . . Recycling Units . | . . . . . . Scanalyzers 4 | . . . . . 4 Garrison Access . | . . . . . . Terminal Hacks 27 | . 2 . 25 . . Record 25 | . . . 25 . . Locate Traps 1 | . 1 . . . . Maintenance Status 1 | . 1 . . . . Fabricator Hacks . | . . . . . . Repair Station Hacks 2 | . 2 . . . . Scan Component 1 | . 1 . . . . Repair 1 | . 1 . . . . Recycling Unit Hacks . | . . . . . . Scanalyzer 4 | . . . . . 4 Insert Component 2 | . . . . . 2 Analyze 2 | . . . . . 2 Garrison Access Hacks . | . . . . . . Unauthorized Hacks . | . . . . . . Terminals . | . . . . . . Fabricators . | . . . . . . Repair Stations . | . . . . . . Recycling Units . | . . . . . . Scanalyzers . | . . . . . . Garrison Access . | . . . . . . Data Cores Recovered . | . . . . . . Used . | . . . . . . Hacking Detections 1 | . . . . . 1 Full Trace Events . | . . . . . . Feedback Events . | . . . . . . Feedback Blocked . | . . . . . . Robot Schematics Acquired . | . . . . . . Robots Built . | . . . . . . Matter . | . . . . . . Time . | . . . . . . Total Robot Build Rating . | . . . . . . Part Schematics Acquired 2 | . . . . . 2 Parts Built . | . . . . . . Matter . | . . . . . . Time . | . . . . . . Total Part Build Rating . | . . . . . . Parts Repaired 1 | . 1 . . . . Time 26 | . 26 . . . . Parts Recycled . | . . . . . . Recycled Matter . | . . . . . . Retrieved Matter . | . . . . . . Retrieved Components . | . . . . . . Parts Scanalyzed 2 | . . . . . 2 Part Schematics Acquired 2 | . . . . . 2 Parts Damaged . | . . . . . . Bothacking | -11 -10 -10 -10 -9 -8 ------------ Run | Scr Mat Min Exi Min Mat Used RIF Installer . | . . . . . . Robots Hacked . | . . . . . . Non-combat . | . . . . . . Combat . | . . . . . . Robot Hacks Applied . | . . . . . . Relay Couplers Released . | . . . . . . Robots Rewired . | . . . . . . Allies Hacked . | . . . . . . Hacks Repelled . | . . . . . . Allies | -11 -10 -10 -10 -9 -8 -------- Run | Scr Mat Min Exi Min Mat Total Allies 1 | . . . . 1 . Largest Group 1 | . . . . 1 1 Highest-Rated Group 31 | . . . . 31 31 Highest-Rated Ally 31 | . . . . 31 31 Total Orders . | . . . . . . Ally Attacks 13 | . . . . . 13 Total Damage 124 | . . . . . 124 Kills 2 | . . . . . 2 Allies Corrupted . | . . . . . . Allies Melted . | . . . . . . Intel | -11 -10 -10 -10 -9 -8 ------- Run | Scr Mat Min Exi Min Mat Robot Analysis Total . | . . . . . . Derelict Logs Recovered . | . . . . . . Drone Launches . | . . . . . . Drone Recoveries . | . . . . . . Exploration | -11 -10 -10 -10 -9 -8 ------------- Run | Scr Mat Min Exi Min Mat Turns Passed 3148 | 53 401 191 2182 61 260 Spaces Moved 1367 | 39 184 105 927 26 86 Core 9 | 9 . . . . . Treads 76 | . . . . . 76 Legs 1282 | 30 184 105 927 26 10 Wheels . | . . . . . . Hover . | . . . . . . Flight . | . . . . . . Fastest Speed 50 | 50 120 180 180 240 183 Average Speed 214 | 103 167 180 233 240 189 Slowest Speed 240 | 120 180 180 240 240 240 Overloaded Moves . | . . . . . . Propulsion Burnouts . | . . . . . . Robots Hopped . | . . . . . . Cave-ins Triggered . | . . . . . . Exploration Rate (%) 26 | 4 23 21 91 7 10 Regions Visited 5 Branch Regions 3 Pre-discovered Areas . | . . . . . . Known Exits Taken . | . . . . . . Unknown Exits Taken 5 | 1 1 1 1 1 . Scrap Searched 1 | . . 1 . . . Spaces Dug . | . . . . . . Terrain Destroyed 14 | . . . . . 14 Melee . | . . . . . . Projectile . | . . . . . . AOE 14 | . . . . . 14 Actions | -11 -10 -10 -10 -9 -8 --------- Run | Scr Mat Min Exi Min Mat Total 1490 | 48 229 107 946 26 134 Wait 14 | . 7 . . . 7 Move 1362 | 38 183 104 926 25 86 Hop . | . . . . . . Pick Up 29 | 4 4 2 15 1 3 Fast Attach 16 | 6 3 . 1 . 6 Attach 5 | . 1 . . . 4 Detach 4 | . 2 . . . 2 Swap 7 | . 3 1 1 . 2 Drop 7 | . 2 . 3 . 2 Fire 46 | . 24 . . . 22 Melee . | . . . . . . Ram . | . . . . . . Kick . | . . . . . . Crush . | . . . . . . Escape Stasis . | . . . . . . Rewire . | . . . . . . Trap . | . . . . . . Miscellaneous . | . . . . . . Route ------- -11/Scrapyard -10/Materials -10/Mines -10/Exiles -9/Mines -8/Materials History --------- Turn | Location | Event 4 | -11/Scrapyard | Discovered new exit (range 15) 54 | -11/Scrapyard | Entered Materials 259 | -10/Materials | Repaired Ion Engine 309 | -10/Materials | Build established: Mutant 445 | -10/Materials | Discovered new exit (range 7) 455 | -10/Materials | Entered Mines 639 | -10/Mines | Deemed a non-threat by the Exiles lab entrance 639 | -10/Mines | Discovered new exit (range 5) 646 | -10/Mines | Entered Exiles 725 | -10/Exiles | Met 8R-AWN 754 | -10/Exiles | Met EX-HEX 972 | -10/Exiles | Met EX-DEC 1072 | -10/Exiles | Visited The Gauntlet 1121 | -10/Exiles | Build established: Hauler-Mutant 1552 | -10/Exiles | Discovered new exit (range 14) 2255 | -10/Exiles | Met EX-BIN 2828 | -10/Exiles | Entered Mines 2829 | -9/Mines | Met a Derelict testing a Signal Generator 2845 | -9/Mines | Found Signal Generator 2861 | -9/Mines | Discovered new exit (range 5) 2889 | -9/Mines | Entered Materials 2889 | -8/Materials | Accompanied by 1 ally 2889 | -8/Materials | Evolved 4 slots: Power x1, Propulsion x1, Utility x1, Weapon x1 3149 | -8/Materials | Self-destructed Last Messages --------------- 03101_ G-47 Trooper destroyed. 03103_ Assault Rifle destroyed. 03109_ Acquired Beam Cannon. 03120_ G-47 Trooper destroyed. 03121_ Lgt. Ion Engine destroyed. 03124_ G-47 Trooper heat damages Imp. Heat Sink. 03129_ Beam Cannon destroyed. 03130_ Overheating: Short circuit. 03130_ Lgt. Treads permanently disabled. 03130_ Destroyed Particle Gun. 03131_ G-47 Trooper heat damages Lgt. Nuclear Core, Aluminum Leg, Imp. Heat Sink, Aluminum Leg. 03133_ Overheating: Arm. Treads damaged (-138). 03133_ G-47 Trooper destroyed. 03135_ Overheating: Beam Cannon damaged (-29). 03136_ Overheating: Beam Cannon damaged (-6). 03138_ Acquired Assault Cannon. 03141_ Beam Cannon destroyed. 03143_ Overheating: Lgt. Treads damaged (-45). 03143_ S-10 Pest destroyed. Map ----- +----------------------------------------------------+ | ?????????????????????????????????????????????????? | | ?????????????????????????????????????????????????? | | ?????????????????????????????????????????????????? | | ?????????????????????????????????????????????????? | | ?????????????????????????????????????????????????? | | ?????????????????????????????????????????????????? | | ?????????????????????????????????????????????????? | | ?????????????????????????????????????????????????? | | ?????????????????????????????????????????????????? | | ?????????????????????????????????????????????????? | | ?????????????????????????????????????????????????? | | ???????????????????????????????????????????????? | | #??????????????????????????????????????????????? | | #??????????????????????????????????????????????? | | #????????????????????????######????????????????? | | #????????????????????????# ######+#####?????? | | #????????????????????????#]%* ?????? | | #????????????????????????# = ?????? | | #????????????????????????# "####????????????? | | #??????????????????#######=%%""#???????????????? | | #??????????????????# %!* "##???????????????? | | ##########?????????# s%[=%[ #???????????????? | | # #?????????# [%s# =###???????????????? | | # #?????????# ]s # #?????????#???????? | | # #?????????# ] # #?????? #???????? | | # #?????????# @ ]# #??? #???????? | | + #?????????######## ## = #???????? | | # ###########"="####% + ??????????? | | # = + = = = %= ##????????????????? | | # ###########"""####/###????????????????? | | ### #?????????### %! #????????????????? | | ??##########???????????#"S #????????????????? | | ???????????????????????#""" #????????????????? | | ???????????????????????# "" #????????????????? | | ???????????????????????# #????????????????? | | ???????????????????????# """ #????????????????? | | ???????????????????????# """ #????????????????? | | ???????????????????????# """ #????????????????? | | ???????????????????????#! #????????????????? | | ???????????????????????##########????????????????? | | ?????????????????????????????????????????????????? | | ?????????????????????????????????????????????????? | | | | | | | | | | | | | | | | | +----------------------------------------------------+ Best States ------------- Heat Dissipation 31 Energy Generation 19 Energy Capacity 275 Matter Stores 300 Matter Capacity 300 Sight Range 18 Terrain Scan Density 10 Evasion (%) 40 Recoil Reduction 3 Item Schematics ----------------- Sensor Array | -8/Materials | Scanalyzed Ion Engine | -8/Materials | Scanalyzed Robot Schematics ------------------ None Fabricated ------------ Nothing Alien Tech Used ----------------- None Achievements -------------- None Challenges ------------ None Game ------ Seed TransportAntimissileMantle Manual? 0 Play Time 00:16:54 Cumulative 7.1 hours Start 2019.11.22 @ 08:09:47 End 2019.11.22 @ 08:28:16 Sessions 2 Manual Loads 0 Difficulty Rogue Special Mode None Game No. 20 Rogue 20 Adventurer 0 Explorer 0 Win Type - Total 0 Types 0/0/0/0/0/0/0 Lore% 14 Gallery% 15 Achievement% 14 Wizard Run 0 Options --------- ASCII 0 Keyboard 1 Movement Vi Keybinds 0 Fullscreen 1 Font 28/SmallcapsGlow Map View 84x54 Tactical HUD 1 Map Filters NONE Filters NONE Steam 1 RUN: 3be89672-043a-4588-a6de-d8c4f7ffbb13